bitfinex/quotes_BTCUSD_20241011
["timestamp","ask_amount","ask_price","bid_price","bid_amount"]
[1728655137713,1e-06,61768.0,61767.0,1.09193373]
[1728655137964,1e-06,61768.0,61767.0,1.09393373]
[1728655138197,1e-06,61768.0,61767.0,1.18728439]
[1728655138432,1e-06,61768.0,61767.0,1.17328439]
[1728655138670,1e-06,61769.0,61768.0,0.291896]
[1728655138893,1e-06,61769.0,61768.0,0.75858915]
[1728655139126,1e-06,61769.0,61768.0,0.64517959]
[1728655139359,1e-06,61769.0,61768.0,0.72995669]
[1728655139591,1e-06,61769.0,61768.0,0.53854185]
[1728655139810,1e-06,61769.0,61768.0,0.55254185]
[1728655140487,1e-06,61769.0,61768.0,0.74595669]
[1728655140706,1e-06,61769.0,61768.0,0.89811266]
[1728655140948,1e-06,61769.0,61768.0,0.71969782]
[1728655141170,1e-06,61769.0,61768.0,0.79119315]
[1728655141412,1e-06,61769.0,61768.0,0.54375164]
[1728655141657,1e-06,61769.0,61768.0,0.49404956]
[1728655141851,1e-06,61769.0,61768.0,0.75695973]
[1728655142089,1e-06,61769.0,61768.0,0.91306058]
[1728655142317,1e-06,61769.0,61768.0,1.00838364]
[1728655142542,0.00164,61788.0,61781.0,0.161862]
[1728655142776,0.00164,61788.0,61781.0,0.36104746]
[1728655143238,0.00164,61788.0,61787.0,0.161846]
[1728655143680,0.00164,61788.0,61787.0,0.16958487]
[1728655144610,0.00464,61788.0,61787.0,0.16958487]
[1728655145059,0.00164,61788.0,61787.0,0.16958487]
[1728655145328,0.00164,61788.0,61787.0,0.9313608]
[1728655145563,0.00164,61788.0,61787.0,0.92712385]
[1728655145794,0.00164,61788.0,61787.0,0.74170901]
[1728655146064,0.00164,61788.0,61787.0,0.74670901]
[1728655146509,0.00164,61788.0,61787.0,0.93212385]
[1728655146745,0.00164,61788.0,61787.0,0.92812385]
[1728655146955,0.00164,61788.0,61787.0,0.95612385]
[1728655147403,0.00164,61788.0,61787.0,0.94412385]
[1728655147848,0.00164,61788.0,61787.0,0.95812385]
[1728655148117,0.00164,61788.0,61787.0,0.97276473]
[1728655148360,0.00164,61788.0,61787.0,0.94476473]
[1728655148614,0.00164,61788.0,61787.0,0.97276473]
[1728655149782,0.00164,61788.0,61787.0,0.97076473]
[1728655151174,0.00164,61788.0,61787.0,0.38899971]
[1728655151864,0.00164,61788.0,61787.0,0.189846]
[1728655152088,0.00164,61788.0,61787.0,0.028]
[1728655152344,0.00164,61788.0,61779.0,0.32373]
[1728655152345,0.86313549,61788.0,61763.0,0.324043]
[1728655152595,0.0791,61780.0,61779.0,0.161867]
[1728655152806,0.2997081,61780.0,61777.0,0.161871]
[1728655153036,0.2997081,61780.0,61778.0,0.161869]
[1728655153037,0.0512988,61779.0,61778.0,0.161869]
[1728655153274,0.01508577,61779.0,61778.0,0.161869]
[1728655153717,0.0791,61780.0,61779.0,0.161867]
[1728655153949,0.1062626,61780.0,61779.0,0.161867]
[1728655154170,0.1112626,61780.0,61779.0,0.161867]
[1728655154610,0.1062626,61780.0,61779.0,0.161867]
[1728655154830,0.1072626,61780.0,61779.0,0.161867]
[1728655156362,0.10890642,61780.0,61779.0,0.161867]
[1728655157028,0.10890642,61780.0,61756.0,0.00082]
[1728655157029,0.28910636,61780.0,61756.0,0.00082]
[1728655157238,0.28910636,61780.0,61770.0,0.24276755]
[1728655157239,0.16187,61778.0,61770.0,0.24276755]
[1728655157452,0.1693093,61778.0,61774.0,0.161877]
[1728655157650,0.08174,61780.0,61778.0,0.161868]
[1728655157919,0.08174,61780.0,61777.0,0.16187]
[1728655157920,0.00926306,61779.0,61777.0,0.16187]
[1728655158142,0.00926306,61779.0,61759.0,0.24276755]
[1728655158143,0.161876,61776.0,61765.0,0.19141484]
[1728655158372,0.1693093,61778.0,61773.0,0.161881]
[1728655158580,0.1693093,61778.0,61769.0,0.323785]
[1728655158805,0.3321793,61778.0,61774.0,0.161878]
[1728655159035,0.03140445,61777.0,61774.0,0.161878]
[1728655159255,0.01207863,61776.0,61774.0,0.161878]
[1728655159474,0.3311793,61778.0,61774.0,0.161878]
[1728655159681,0.01207836,61777.0,61770.0,0.323779]
[1728655159900,0.01207836,61777.0,61769.0,0.19141484]
[1728655159901,0.01207836,61776.0,61775.0,0.161877]
[1728655160142,0.01,61778.0,61777.0,0.161872]
[1728655160650,0.001,61778.0,61772.0,0.323768]
[1728655160876,0.008174,61777.0,61776.0,0.161875]
[1728655161087,0.006,61776.0,61775.0,0.001]
[1728655161309,0.006,61776.0,61775.0,0.162877]
[1728655161520,0.001,61778.0,61777.0,0.161872]
[1728655163047,0.08074,61780.0,61779.0,0.161867]
[1728655163282,0.08074,61780.0,61777.0,0.162871]
[1728655163283,0.15754332,61780.0,61777.0,0.162871]
[1728655163526,0.005,61778.0,61777.0,0.162872]
[1728655163750,0.01708394,61778.0,61777.0,0.162872]
[1728655163965,0.07689598,61778.0,61777.0,0.161872]
[1728655164204,0.07689598,61778.0,61773.0,0.161881]
[1728655164417,0.06481204,61778.0,61773.0,0.161881]
[1728655164638,0.06481204,61778.0,61769.0,0.323784]
[1728655164842,0.06481204,61778.0,61775.0,0.161876]
[1728655165050,0.24276755,61777.0,61769.0,0.323784]
[1728655165257,0.005,61778.0,61771.0,0.323772]
[1728655165490,0.24276755,61777.0,61771.0,0.323772]
[1728655165718,0.17396043,61776.0,61770.0,0.161889]
[1728655165932,0.22217776,61776.0,61770.0,0.161889]
[1728655166152,0.22217776,61776.0,61770.0,0.16189]
[1728655166153,0.01208579,61775.0,61770.0,0.16189]
[1728655166365,0.06030276,61776.0,61767.0,0.323796]
[1728655166579,0.06030276,61776.0,61772.0,0.161884]
[1728655166580,0.01208483,61775.0,61772.0,0.161884]
[1728655166867,0.01208483,61774.0,61769.0,0.161893]
[1728655167092,0.01208483,61774.0,61765.0,0.323804]
[1728655167302,0.161879,61775.0,61769.0,0.161892]
[1728655167543,0.01208255,61774.0,61769.0,0.323782]
[1728655167750,0.01208255,61774.0,61768.0,0.00182]
[1728655167751,0.0789,61772.0,61768.0,0.00182]
[1728655167971,0.161893,61769.0,61768.0,0.00182]
[1728655168187,0.3312023,61769.0,61768.0,0.00082]
[1728655168409,0.48825405,61769.0,61768.0,0.00082]
[1728655169074,0.50033433,61769.0,61768.0,0.00082]
[1728655169503,0.50033433,61769.0,61768.0,0.00282]
[1728655169933,0.74310188,61769.0,61768.0,0.00282]
[1728655170143,0.50033433,61769.0,61768.0,0.00282]
[1728655170365,0.93451672,61769.0,61768.0,0.00282]
[1728655170627,0.93451672,61769.0,61763.0,0.00023]
[1728655170628,0.43532084,61764.0,61763.0,0.00023]
[1728655170856,0.63602999,61764.0,61763.0,0.00023]
[1728655171521,0.76062999,61764.0,61763.0,0.00023]
[1728655172190,0.76262999,61764.0,61763.0,0.00023]
[1728655172410,0.7605901,61764.0,61763.0,0.00023]
[1728655172630,0.9300328,61764.0,61763.0,0.00023]
[1728655172845,0.9420328,61764.0,61763.0,0.00123]
[1728655173312,0.9440328,61764.0,61763.0,0.00123]
[1728655173520,0.9490328,61764.0,61763.0,0.00123]
[1728655173991,0.9490328,61764.0,61763.0,0.00223]
[1728655173992,0.9530328,61764.0,61763.0,0.00223]
[1728655174220,0.9510328,61764.0,61763.0,0.00223]
[1728655174737,0.9530328,61764.0,61763.0,0.00223]
[1728655175185,0.9510328,61764.0,61763.0,0.00223]
[1728655175619,0.9530328,61764.0,61763.0,0.00223]
[1728655175834,0.161924,61757.0,61756.0,0.00082]
[1728655176091,0.75548377,61757.0,61756.0,0.00082]
[1728655176748,1.04510777,61757.0,61756.0,0.00082]
[1728655176987,1.04510777,61757.0,61756.0,0.00282]
[1728655176988,0.87848377,61757.0,61756.0,0.00282]
[1728655177205,1.03553552,61757.0,61756.0,0.00282]
[1728655177425,1.04959589,61757.0,61756.0,0.00182]
[1728655177669,1.03759589,61757.0,61756.0,0.00182]
[1728655177881,1.33628289,61757.0,61756.0,0.00282]
[1728655178094,1.33628289,61757.0,61756.0,0.00182]
[1728655178095,1.31822252,61757.0,61756.0,0.00182]
[1728655178538,1.34122252,61757.0,61756.0,0.00182]
[1728655178992,1.34122252,61757.0,61741.0,0.0005]
[1728655178993,0.168932,61754.0,61741.0,0.0005]
[1728655179201,1.3593634,61754.0,61741.0,0.0005]
[1728655179422,1.1690844,61754.0,61741.0,0.0005]
[1728655179638,1.1542584,61754.0,61741.0,0.0005]
[1728655180078,1.15424754,61754.0,61741.0,0.0005]
[1728655180312,1.00804007,61754.0,61741.0,0.0005]
[1728655180526,0.89728091,61754.0,61741.0,0.0005]
[1728655180745,1.14004846,61754.0,61741.0,0.0005]
[1728655180994,0.89728091,61754.0,61741.0,0.0005]
[1728655181640,1.14004846,61754.0,61741.0,0.0005]
[1728655181871,1.06672361,61754.0,61741.0,0.0005]
[1728655182105,1.05472361,61754.0,61741.0,0.0005]
[1728655182346,1.06872361,61754.0,61741.0,0.0005]
[1728655182565,0.16197,61740.0,61737.0,0.15203355]
[1728655182778,0.34333029,61739.0,61736.0,0.161978]
[1728655183010,0.11116702,61738.0,61736.0,0.161978]
[1728655183215,0.01204799,61737.0,61736.0,0.161978]
[1728655183664,0.01204799,61737.0,61735.0,0.161982]
[1728655184133,0.17402599,61737.0,61732.0,0.32398]
[1728655184355,0.01204799,61736.0,61734.0,0.161983]
[1728655184578,0.25481554,61736.0,61735.0,0.161982]
[1728655184799,0.25481554,61736.0,61734.0,0.161984]
[1728655184800,0.11739588,61736.0,61734.0,0.161984]
[1728655185020,0.1693093,61738.0,61734.0,0.323966]
[1728655185248,0.01405307,61737.0,61736.0,0.16198]
[1728655185481,0.01205307,61737.0,61729.0,0.19141484]
[1728655185727,0.01205323,61736.0,61735.0,0.161982]
[1728655186464,0.01205323,61736.0,61733.0,0.161985]
[1728655186692,0.01205323,61735.0,61734.0,0.161985]
[1728655187150,0.01205323,61735.0,61733.0,0.161987]
[1728655187382,0.03049053,61734.0,61733.0,0.161987]
[1728655188875,0.03549053,61734.0,61733.0,0.161987]
[1728655189110,0.03549053,61734.0,61725.0,0.001638]
[1728655189111,0.2163,61733.0,61725.0,0.001638]
[1728655189358,0.323994,61730.0,61725.0,0.163646]
[1728655189598,0.323994,61730.0,61725.0,0.001638]
[1728655189599,0.20065152,61729.0,61725.0,0.001638]
[1728655189822,0.03134222,61728.0,61725.0,0.001638]
[1728655190043,0.01205428,61727.0,61725.0,0.001638]
[1728655190266,0.1693093,61729.0,61725.0,0.163645]
[1728655190267,0.01205428,61726.0,61725.0,0.163645]
[1728655190478,0.01205428,61726.0,61725.0,0.001638]
[1728655190676,0.09215428,61726.0,61725.0,0.001638]
[1728655190917,0.44275501,61726.0,61725.0,0.001638]
[1728655191165,0.60811848,61726.0,61725.0,0.001638]
[1728655191370,0.60812586,61726.0,61725.0,0.001638]
[1728655191604,0.60812586,61726.0,61725.0,0.004638]
[1728655191848,0.60812586,61726.0,61725.0,0.001638]
[1728655192306,0.74772586,61726.0,61725.0,0.002638]
[1728655192555,0.74672586,61726.0,61725.0,0.001638]
[1728655192775,0.76280129,61726.0,61725.0,0.001638]
[1728655193040,0.73572586,61726.0,61725.0,0.001638]
[1728655193256,0.84072586,61726.0,61725.0,0.001638]
[1728655193469,1.0461407,61726.0,61725.0,0.001638]
[1728655194104,1.0581407,61726.0,61725.0,0.002638]
[1728655194735,1.02679361,61726.0,61725.0,0.002638]
[1728655195173,1.05815237,61726.0,61725.0,0.002638]
[1728655195854,0.86673753,61726.0,61725.0,0.002638]
[1728655196068,0.22666806,61726.0,61725.0,0.164646]
[1728655196328,0.24275107,61726.0,61725.0,0.002638]
[1728655196523,0.38867406,61726.0,61725.0,0.01019279]
[1728655196752,0.35622042,61726.0,61725.0,0.002638]
[1728655196983,0.34222042,61726.0,61725.0,0.01019243]
[1728655197211,0.50422642,61726.0,61725.0,0.002638]
[1728655197439,0.51222642,61726.0,61725.0,0.01018905]
[1728655197663,0.51222642,61726.0,61725.0,0.002638]
[1728655197881,0.49222642,61726.0,61725.0,0.00918905]
[1728655198342,0.51430943,61726.0,61725.0,0.01018905]
[1728655198566,0.49222642,61726.0,61725.0,0.001638]
[1728655198767,0.51433469,61726.0,61725.0,0.01018905]
[1728655199001,0.49822642,61726.0,61725.0,0.002638]
[1728655199118,0.16691112,61726.0,61725.0,0.01018905]
[1728655199357,0.03735876,61726.0,61725.0,0.164646]
[1728655199600,0.03735876,61726.0,61725.0,0.01018905]
[1728655199825,0.04635876,61726.0,61725.0,0.17219705]
[1728655200029,0.06247506,61726.0,61725.0,0.17219705]
[1728655200260,0.42323462,61726.0,61725.0,0.01018905]
[1728655200493,0.48621832,61726.0,61725.0,0.01018905]
[1728655200946,0.04527876,61726.0,61725.0,0.01018905]
[1728655201183,0.03435107,61726.0,61725.0,0.17219705]
[1728655202117,0.02835107,61726.0,61725.0,0.17119705]
[1728655202331,0.03435107,61726.0,61725.0,0.17219705]
[1728655202563,0.03435107,61726.0,61725.0,0.24959705]
[1728655202784,0.009,61726.0,61725.0,0.24859705]
[1728655203011,0.161979,61737.0,61733.0,0.161985]
[1728655203248,0.3312883,61737.0,61734.0,0.161984]
[1728655203477,0.25177979,61736.0,61733.0,0.161987]
[1728655203737,0.25177979,61736.0,61725.0,0.01918905]
[1728655203738,0.34332764,61735.0,61725.0,0.01918905]
[1728655203994,0.01613554,61734.0,61733.0,0.323974]
[1728655204212,0.01613554,61734.0,61733.0,0.566161]
[1728655204213,0.01936505,61734.0,61733.0,0.566161]
[1728655204870,0.01936505,61734.0,61733.0,0.485961]
[1728655205152,0.45858919,61734.0,61725.0,0.00918905]
[1728655205379,0.35342084,61726.0,61725.0,0.00918905]
[1728655205601,0.35068035,61726.0,61725.0,0.00918905]
[1728655205841,0.162011,61724.0,61717.0,0.324055]
[1728655206075,0.01936505,61724.0,61721.0,0.162518]
[1728655206326,0.38502196,61724.0,61721.0,0.0005]
[1728655206542,0.35068535,61724.0,61721.0,0.0005]
[1728655207232,0.04651851,61724.0,61723.0,0.162834]
[1728655207472,0.03036505,61724.0,61723.0,0.242034]
[1728655207699,0.01936505,61724.0,61723.0,0.242034]
[1728655207929,0.03036505,61724.0,61723.0,0.24527397]
[1728655208169,0.011,61724.0,61723.0,0.54258313]
[1728655208394,0.011,61724.0,61723.0,0.58920612]
[1728655208619,0.011,61724.0,61723.0,0.78262096]
[1728655208844,0.001638,61737.0,61736.0,0.58359484]
[1728655209082,0.001638,61737.0,61736.0,0.75290414]
[1728655209350,0.24276755,61745.0,61744.0,0.161959]
[1728655209561,0.01615346,61761.0,61743.0,0.19141484]
[1728655209800,0.01615346,61761.0,61736.0,0.4995093]
[1728655209801,0.25892101,61770.0,61745.0,0.1]
[1728655210029,0.25892101,61770.0,61742.0,0.323927]
[1728655210030,0.01936382,61762.0,61761.0,0.161914]
[1728655210268,0.01936382,61762.0,61758.0,0.161922]
[1728655210269,0.18127582,61762.0,61758.0,0.161922]
[1728655210498,0.325431,61768.0,61767.0,0.161898]
[1728655210499,0.001638,61768.0,61767.0,0.161898]
[1728655210743,0.02098258,61768.0,61767.0,0.161898]
[1728655210969,0.02098161,61768.0,61767.0,0.161898]
[1728655211203,0.02098135,61768.0,61767.0,0.161898]
[1728655211440,0.001638,61768.0,61767.0,0.161898]
[1728655211931,0.003638,61768.0,61767.0,0.156898]
[1728655212174,0.01571596,61768.0,61767.0,0.156898]
[1728655212665,0.003638,61768.0,61767.0,0.156898]
[1728655212881,0.004638,61768.0,61767.0,0.156898]
[1728655213120,0.001638,61768.0,61767.0,0.156898]
[1728655213611,0.001638,61768.0,61767.0,0.16413573]
[1728655213834,0.001638,61768.0,61767.0,0.32944503]
[1728655214074,0.001638,61768.0,61767.0,0.3292073]
[1728655214568,0.001638,61768.0,61767.0,0.3262073]
[1728655215026,0.001638,61768.0,61767.0,0.3622073]
[1728655215027,0.002638,61768.0,61767.0,0.3622073]
[1728655215482,0.002638,61768.0,61767.0,0.3392073]
[1728655215713,0.002638,61768.0,61767.0,0.3512073]
[1728655215943,0.002638,61768.0,61767.0,0.169898]
[1728655216382,0.001638,61768.0,61767.0,0.170898]
[1728655216647,0.002638,61768.0,61767.0,0.166898]
[1728655216873,0.002638,61768.0,61767.0,0.180898]
[1728655217340,0.001638,61768.0,61767.0,0.170898]
[1728655217574,0.002638,61768.0,61767.0,0.024]
[1728655217806,0.1971758,61768.0,61767.0,0.024]
[1728655218037,0.3654851,61768.0,61767.0,0.014]
[1728655218298,0.3654851,61768.0,61767.0,0.45930702]
[1728655218299,0.001638,61768.0,61767.0,0.45930702]
[1728655218538,0.001638,61768.0,61767.0,0.014]
[1728655218539,0.3328433,61768.0,61767.0,0.014]
[1728655218767,0.3328433,61768.0,61732.0,0.09506599]
[1728655218768,0.1709473,61768.0,61745.0,0.323909]
[1728655219027,0.001638,61768.0,61767.0,0.25676755]
[1728655219255,0.001638,61768.0,61767.0,0.161898]
[1728655219524,0.001638,61768.0,61767.0,0.45430702]
[1728655219737,0.003638,61768.0,61767.0,0.45530702]
[1728655219979,0.001638,61768.0,61767.0,0.44530702]
[1728655220456,0.002638,61768.0,61767.0,0.44530702]
[1728655221187,0.003638,61768.0,61767.0,0.45330702]
[1728655221916,0.003638,61768.0,61767.0,0.62261632]
[1728655222174,0.002638,61768.0,61767.0,0.62261632]
[1728655222645,0.002638,61768.0,61767.0,0.63661632]
[1728655222883,0.002638,61768.0,61767.0,0.62261632]
[1728655223126,0.001638,61768.0,61767.0,0.62861632]
[1728655223379,0.002638,61768.0,61767.0,0.182898]
[1728655223863,0.001638,61768.0,61767.0,0.175898]
[1728655224105,0.163505,61780.0,61771.0,0.323774]
[1728655224106,0.00164,61780.0,61771.0,0.323774]
[1728655224380,0.00164,61780.0,61779.0,0.161867]
[1728655225844,0.1872992,61780.0,61772.0,0.323769]
[1728655226102,0.1872992,61780.0,61767.0,0.0234406]
[1728655226103,0.161896,61768.0,61767.0,0.0234406]
[1728655226357,0.48713166,61768.0,61767.0,0.0044406]
[1728655226623,0.16193,61755.0,61754.0,0.24276755]
[1728655226913,0.66570732,61755.0,61754.0,0.24276755]
[1728655227164,0.161945,61749.0,61748.0,0.24276755]
[1728655227396,0.3582836,61749.0,61748.0,0.24276755]
[1728655227627,0.1963386,61749.0,61740.0,0.56670455]
[1728655227870,0.1693093,61748.0,61740.0,0.24276755]
[1728655228105,0.1693093,61748.0,61747.0,0.161951]
[1728655228388,0.1693093,61748.0,61725.0,0.28422802]
[1728655228619,0.16196,61744.0,61737.0,0.323954]
[1728655228853,0.014,61749.0,61742.0,0.24276755]
[1728655229116,0.014,61749.0,61734.0,0.24276755]
[1728655229117,0.014,61749.0,61748.0,0.44535702]
[1728655229365,0.014,61749.0,61748.0,0.45616078]
[1728655229568,0.323819,61763.0,61758.0,0.161922]
[1728655229569,0.16191,61763.0,61758.0,0.161922]
[1728655229841,0.32536755,61766.0,61758.0,0.161922]
[1728655230083,0.24276755,61772.0,61771.0,0.161888]
[1728655230324,0.01503689,61772.0,61771.0,0.17250903]
[1728655231527,0.01703689,61772.0,61771.0,0.17038974]
[1728655231757,0.00164,61780.0,61771.0,0.00750174]
[1728655231992,0.00164,61780.0,61771.0,0.324773]
[1728655231993,0.38055435,61778.0,61771.0,0.324773]
[1728655232233,0.38055435,61778.0,61772.0,0.00753512]
[1728655232458,0.05681335,61778.0,61772.0,0.01126467]
[1728655232721,0.07019111,61777.0,61776.0,0.161875]
[1728655232965,0.3311773,61779.0,61776.0,0.00748861]
[1728655233209,0.1693093,61779.0,61776.0,0.16936061]
[1728655233458,0.00164,61780.0,61779.0,0.161867]
[1728655233701,0.00164,61780.0,61778.0,0.161868]
[1728655233941,0.00164,61780.0,61779.0,0.00747273]
[1728655234183,0.00164,61780.0,61776.0,0.001]
[1728655234468,0.006,61778.0,61775.0,0.161877]
[1728655234709,0.006,61778.0,61774.0,0.323756]
[1728655234710,0.006,61778.0,61774.0,0.161878]
[1728655234945,0.16787,61778.0,61773.0,0.161881]
[1728655235187,0.16787,61778.0,61772.0,0.001]
[1728655235188,0.18436022,61777.0,61772.0,0.001]
[1728655235435,0.01505092,61776.0,61772.0,0.001]
[1728655235691,0.01505092,61776.0,61773.0,0.323765]
[1728655235924,0.25445921,61777.0,61776.0,0.161875]
[1728655236167,0.161876,61776.0,61772.0,0.161884]
[1728655236407,0.1693093,61777.0,61776.0,0.162875]
[1728655236645,0.18438334,61777.0,61767.0,0.60720402]
[1728655236876,0.01807404,61776.0,61771.0,0.323772]
[1728655237135,0.01807404,61776.0,61767.0,0.28340902]
[1728655237136,0.003,61776.0,61775.0,0.161877]
[1728655237406,0.03924879,61776.0,61775.0,0.161877]
[1728655237656,0.05857143,61776.0,61775.0,0.161877]
[1728655237888,0.03924879,61776.0,61775.0,0.161877]
[1728655238380,0.05858677,61776.0,61775.0,0.161877]
[1728655239074,0.03924879,61776.0,61775.0,0.161877]
[1728655239313,0.05958645,61776.0,61775.0,0.161877]
[1728655239820,0.03924879,61776.0,61775.0,0.161877]
[1728655240302,0.04224879,61776.0,61775.0,0.161877]
[1728655240538,0.01909569,61776.0,61775.0,0.161877]
[1728655240770,0.01509569,61776.0,61775.0,0.161877]
[1728655241517,0.03927454,61776.0,61775.0,0.005]
[1728655241766,0.03927454,61776.0,61768.0,0.323787]
[1728655241767,0.24820591,61776.0,61768.0,0.323787]
[1728655242007,0.002,61771.0,61747.0,0.28422802]
[1728655242268,0.161906,61764.0,61763.0,0.24276755]
[1728655242505,0.161906,61764.0,61761.0,0.161913]
[1728655242506,0.31827355,61764.0,61761.0,0.161913]
[1728655242741,0.05861806,61763.0,61761.0,0.161913]
[1728655242978,0.05861806,61762.0,61761.0,0.161914]
[1728655243250,0.01604591,61768.0,61761.0,0.161914]
[1728655243251,0.01604591,61778.0,61777.0,0.161872]
[1728655243498,0.05863657,61778.0,61777.0,0.161872]
[1728655243721,0.01675052,61778.0,61777.0,0.161872]
[1728655244621,0.01675052,61778.0,61777.0,0.18119906]
[1728655244622,0.001638,61778.0,61777.0,0.18119906]
[1728655244860,0.001638,61778.0,61777.0,0.1844362]
[1728655245084,0.001638,61778.0,61777.0,0.1734362]
[1728655245764,0.001638,61778.0,61777.0,0.1874362]
[1728655246210,0.001638,61778.0,61777.0,0.3567455]
[1728655246443,0.001638,61778.0,61777.0,0.78244694]
[1728655246909,0.001638,61778.0,61777.0,0.78544694]
[1728655247858,0.001638,61778.0,61777.0,0.77144694]
[1728655248350,0.001638,61778.0,61777.0,0.78244694]
[1728655248602,0.002638,61778.0,61777.0,0.60513764]
[1728655249079,0.001638,61778.0,61777.0,0.61313764]
[1728655249327,0.1709473,61778.0,61777.0,0.00832706]
[1728655249566,0.5503283,61778.0,61777.0,0.01082738]
[1728655249956,1.19296688,61778.0,61777.0,0.02]
[1728655249957,1.19296688,61778.0,61764.0,0.24276755]
[1728655249958,0.161896,61768.0,61764.0,0.24276755]
[1728655250194,0.39478857,61768.0,61764.0,0.24276755]
[1728655250420,0.38978857,61768.0,61767.0,0.01166236]
[1728655250647,0.38978857,61768.0,61767.0,0.000819]
[1728655250880,0.38978882,61768.0,61767.0,0.000819]
[1728655251365,0.05858352,61768.0,61767.0,0.17368856]
[1728655251599,0.01509816,61768.0,61767.0,0.162717]
[1728655251819,0.01509816,61768.0,61767.0,0.17468856]
[1728655252038,0.03925341,61768.0,61767.0,0.17368856]
[1728655252265,0.04825341,61768.0,61767.0,0.17368856]
[1728655252763,0.03925341,61768.0,61767.0,0.17368856]
[1728655252985,0.01509816,61768.0,61767.0,0.17368856]
[1728655254020,0.40464255,61776.0,61772.0,0.161884]
[1728655254216,0.40464255,61776.0,61771.0,0.161887]
[1728655254217,0.38976395,61775.0,61771.0,0.161887]
[1728655254419,0.22045765,61774.0,61773.0,0.01089432]
[1728655254634,0.161885,61772.0,61768.0,0.161895]
[1728655254832,0.01509733,61771.0,61770.0,0.16189]
[1728655255646,0.007,61775.0,61774.0,0.16188]
[1728655255863,0.02209644,61775.0,61774.0,0.16188]
[1728655256297,0.01509644,61775.0,61774.0,0.16188]
[1728655256537,0.01509644,61775.0,61774.0,0.59081858]
[1728655256765,0.001638,61778.0,61777.0,0.161872]
[1728655258142,0.002638,61778.0,61777.0,0.014]
[1728655258339,0.01775369,61778.0,61777.0,0.014]
[1728655258589,0.09394713,61778.0,61777.0,0.161872]
[1728655258795,0.01675369,61778.0,61777.0,0.161872]
[1728655259023,0.04194095,61778.0,61777.0,0.161872]
[1728655259622,0.01875369,61778.0,61777.0,0.17275349]
[1728655260076,0.01775369,61778.0,61777.0,0.17275349]
[1728655260309,0.01675369,61778.0,61777.0,0.01088149]
[1728655260552,0.01775369,61778.0,61777.0,0.01088149]
[1728655260810,0.002638,61778.0,61777.0,0.161872]
[1728655261058,0.06132454,61778.0,61777.0,0.161872]
[1728655261312,0.0419643,61778.0,61777.0,0.17275349]
[1728655261544,0.0419643,61778.0,61777.0,0.01088149]
[1728655261770,0.161896,61768.0,61748.0,0.24276755]
[1728655262003,0.89943378,61768.0,61764.0,0.24276755]
[1728655262237,1.02713378,61768.0,61755.0,0.40469455]
[1728655262532,1.19657648,61768.0,61755.0,0.24276755]
[1728655262756,0.7676379,61768.0,61755.0,0.40469555]
[1728655262990,0.7676379,61768.0,61755.0,0.24276755]
[1728655263220,0.7766379,61768.0,61755.0,0.24276755]
[1728655263443,0.6071952,61768.0,61755.0,0.24276755]
[1728655263675,0.6143241,61768.0,61755.0,0.40469655]
[1728655263911,0.7031952,61768.0,61755.0,0.24276755]
[1728655264154,0.7031952,61768.0,61751.0,0.32388]
[1728655264155,0.94596275,61768.0,61756.0,0.161926]
[1728655264380,0.323865,61754.0,61748.0,0.24276755]
[1728655264616,0.1844348,61753.0,61748.0,0.56666355]
[1728655264855,0.0151255,61752.0,61748.0,0.323896]
[1728655265109,0.1693093,61753.0,61751.0,0.16194]
[1728655265382,0.1693093,61753.0,61752.0,0.161938]
[1728655265601,0.24276755,61766.0,61765.0,0.161903]
[1728655265835,0.24276755,61757.0,61756.0,0.161927]
[1728655266028,0.30416847,61766.0,61764.0,0.161906]
[1728655266307,0.30416847,61766.0,61750.0,0.323886]
[1728655266308,0.1693093,61765.0,61750.0,0.323886]
[1728655266545,0.323833,61761.0,61750.0,0.24276755]
[1728655266779,0.0806,61768.0,61750.0,0.24276755]
[1728655266780,0.161926,61757.0,61754.0,0.161932]
[1728655267014,0.161921,61759.0,61748.0,0.323893]
[1728655267212,0.1693093,61759.0,61758.0,0.161922]
[1728655267448,0.1693093,61759.0,61742.0,0.002]
[1728655267449,0.41207685,61759.0,61740.0,0.1]
[1728655267686,0.004,61753.0,61752.0,0.161938]
[1728655267946,0.323806,61766.0,61745.0,0.24276755]
[1728655268176,0.002,61757.0,61756.0,0.161927]
[1728655268412,0.002,61757.0,61756.0,0.16516535]
[1728655268638,0.24276755,61768.0,61760.0,0.323832]
[1728655268898,0.24276755,61761.0,61756.0,0.323854]
[1728655269144,0.1693093,61767.0,61761.0,0.323824]
[1728655269356,0.1693093,61767.0,61750.0,0.24276755]
[1728655269577,0.161906,61765.0,61760.0,0.161915]
[1728655269812,0.1693093,61764.0,61763.0,0.161908]
[1728655270256,0.24532396,61764.0,61756.0,0.002]
[1728655270493,0.24532396,61764.0,61762.0,0.161909]
[1728655270714,0.24532396,61764.0,61763.0,0.161909]
[1728655270938,0.24532396,61764.0,61761.0,0.323827]
[1728655271163,0.004,61761.0,61759.0,0.323839]
[1728655271392,0.1693093,61760.0,61752.0,0.161936]
[1728655271607,0.161921,61759.0,61756.0,0.161926]
[1728655271857,0.1693093,61758.0,61754.0,0.161931]
[1728655272071,0.05731503,61757.0,61750.0,0.323882]
[1728655272300,0.05731503,61757.0,61754.0,0.161931]
[1728655272522,0.05731503,61757.0,61756.0,0.161927]
[1728655272814,0.23433613,61757.0,61753.0,0.161934]
[1728655273020,0.12912834,61756.0,61752.0,0.323875]
[1728655273263,0.11403224,61756.0,61754.0,0.161932]
[1728655273473,0.01509295,61755.0,61754.0,0.161932]
[1728655274358,0.01509295,61755.0,61754.0,0.162932]
[1728655274578,0.09550535,61755.0,61754.0,0.162932]
[1728655274794,0.01509295,61755.0,61754.0,0.161932]
[1728655275023,0.015,61755.0,61754.0,0.162932]
[1728655275473,0.015,61755.0,61754.0,0.16617046]
[1728655275753,0.015,61755.0,61754.0,0.162932]
[1728655275965,0.007,61755.0,61754.0,0.161932]
[1728655276189,0.015,61755.0,61754.0,0.16617021]
[1728655276872,0.015,61755.0,61754.0,0.44047951]
[1728655277112,0.015,61755.0,61754.0,0.4372413]
[1728655277844,0.008,61755.0,61754.0,0.4372413]
[1728655278070,0.24276755,61761.0,61760.0,0.161917]